Workbook

Sheet Liste de débit
A1: Section brute | B1: Désignation | C1: Qt | D1: Dimensions rabotées | G1: Long. + | H1: Long. Scierie | I1: Qt | L1: Désignation | M1: section | O1: Lg | P1: Qt. | Q1: Vol. | R1: P.U HT | S1: Montant HT
D2: larg. | E2: Haut | F2: Long. | M2: Hauteur | N2: Largeur
A3: 30 x 190 | B3: Bandeau droit | C3: 4 | D3: 21 | E3: 180 | F3: 2.523 | G3: =F3+0.15 -> 2.673 | H3: 5.5 | J3: 4 | M3: [mm] | N3: [mm] | O3: [m] | P3: [u] | Q3: [m3] | R3: [€/m3] | S3: [€]
B4: Bandeau gch | C4: 4 | D4: 21 | E4: 180 | F4: 2.523 | G4: =F4+0.15 -> 2.673 | H4: 5.5 | L4: Douglas | M4: 30 | N4: 190 | O4: 5.5 | P4: 4 | Q4: =P4*O4*N4*M4/1000000 -> 0.1254 | R4: 580 | S4: =R4*Q4 -> 72.732
B5: optimisation | C5: 4 | G5: 5.4 | L5: Douglas | M5: 60 | N5: 170 | O5: 5 | P5: 4 | Q5: 0.204 | R5: 580 | S5: 118.32
L6: Douglas | M6: 70 | N6: 90 | O6: 5.5 | P6: 8 | Q6: 0.2772 | R6: 580 | S6: 160.776
A7: 60 x 170 | B7: Entrait 1/2 ferme | C7: 4 | D7: 50 | E7: 160 | F7: 2.057 | G7: =F7+0.15 -> 2.207 | H7: 5 | I7: =Repart(G7,H7,C7) -> 2 | J7: 4 | L7: Douglas | M7: 100 | N7: 190 | O7: 5.5 | P7: 14 | Q7: 1.463 | R7: 550 | S7: 804.65
C8: 2 | G8: 4.4 | L8: Douglas | M8: 170 | N8: 170 | O8: 3 | P8: 1 | Q8: 0.0867 | R8: 550 | S8: 47.685
L9: Douglas | M9: 210 | N9: 210 | O9: 3 | P9: 4 | Q9: 0.5292 | R9: 550 | S9: 291.06
B10: Entrait | C10: 2 | D10: 50 | E10: 160 | F10: 4.4 | G10: =F10+0.15 -> 4.55 | H10: 5 | I10: =Repart(G10,H7,C10) -> 2
L11: Transport | P11: 1 | S11: 100
A12: 70 x 90 | B12: Chevron droit | C12: 4 | D12: 60 | E12: 80 | F12: 1.546 | G12: =F12+0.1 -> 1.646 | H12: 5.5 | I12: =Repart(G12+G13+G14+G15+G16,H12,C12) -> 4 | J12: 8
B13: Empan. brisis droit | C13: 4 | D13: 60 | E13: 80 | F13: 0.607 | G13: =F13+0.1 -> 0.707 | L13: Bois de charpente, brut de sciage, vive arête
B14: Empan. court droit | C14: 4 | D14: 60 | E14: 80 | F14: 0.471 | G14: =F14+0.1 -> 0.571
B15: Empan. long droit | C15: 4 | D15: 60 | E15: 80 | F15: 1.396 | G15: =F15+0.1 -> 1.496 | R15: Volume total [m3] | S15: =Q8+Q9+Q7+Q5+Q4+Q6 -> 2.6855
B16: Empan. moyen droit | C16: 4 | D16: 60 | E16: 80 | F16: 0.934 | G16: =F16+0.1 -> 1.034 | R16: Total H.T. | S16: =S8+S9+S7+S5+S4+S6 -> 1495.223
C17: 4 | G17: =G12+G13+G14+G15+G16 -> 5.454 | R17: Total T.V.A. | S17: =S16*0.196 -> 293.063708
R18: Net à payer | S18: =S16+S17 -> 1788.286708
B19: Chevron gch | C19: 4 | D19: 60 | E19: 80 | F19: 1.546 | G19: =F19+0.1 -> 1.646 | H19: 5.5 | I19: =Repart(G19+G20+G21+G22+G23,H19,C19) -> 4
B20: Empan. brisis gch | C20: 4 | D20: 60 | E20: 80 | F20: 0.607 | G20: =F20+0.1 -> 0.707
B21: Empan. court gch | C21: 4 | D21: 60 | E21: 80 | F21: 0.471 | G21: =F21+0.1 -> 0.571
B22: Empan. long gch | C22: 4 | D22: 60 | E22: 80 | F22: 1.396 | G22: =F22+0.1 -> 1.496
B23: Empan. moyen gch | C23: 4 | D23: 60 | E23: 80 | F23: 0.934 | G23: =F23+0.1 -> 1.034
C24: 4 | G24: =G19+G20+G21+G22+G23 -> 5.454
A26: 100 x 190 | B26: Fourrure coyau | C26: 4 | D26: 90 | E26: 127 | F26: 2.576 | G26: =F26+0.15 -> 2.726 | H26: 5.5 | I26: =Repart(G26+G27+G28,H26,C26) -> 4 | J26: 14
B27: 1/2 panne haute | C27: 4 | D27: 80 | E27: 180 | F27: 1.255 | G27: =F27+0.15 -> 1.405
B28: Panne brisis | C28: 4 | D28: 80 | E28: 180 | F28: 1.214 | G28: =F28+0.15 -> 1.364
C29: 4 | G29: =G28+G27+G26 -> 5.495
B31: Panne porteuse | C31: 4 | D31: 80 | E31: 180 | F31: 3.259 | G31: =F31+0.15 -> 3.409 | H31: 5.5 | I31: =Repart(G31+G32,H31,C31) -> 4
B32: 1/2 panne basse | C32: 4 | D32: 80 | E32: 180 | F32: 1.985 | G32: =F32+0.15 -> 2.135
C33: 4 | G33: =G31+G32 -> 5.544
B35: Coyau | C35: 4 | D35: 90 | E35: 160 | F35: 2.093 | G35: =F35+0.15 -> 2.243 | H35: 5.5 | I35: =Repart(G35+G36,H35,C35) -> 4
B36: Arbalétrier | C36: 4 | D36: 90 | E36: 180 | F36: 2.729 | G36: =F36+0.15 -> 2.879
C37: 4 | G37: =G35+G36 -> 5.122
B39: Fourrure arba | C39: 4 | D39: 90 | E39: 145 | F39: 1.34 | G39: =F39+0.15 -> 1.49 | H39: 5.5 | I39: =Repart(G39+G40,H39,C39) -> 2
B40: Contrefiche | C40: 4 | D40: 70 | E40: 120 | F40: 0.794 | G40: =F40+0.15 -> 0.944
C41: 4 | G41: =G40+G39 -> 2.434
A43: 170 x 170 | B43: Poinçon | C43: 1 | D43: 160 | E43: 160 | F43: 1.342 | G43: =F43+0.15 -> 1.492 | H43: 3 | J43: 1
A45: 210 x 210 | B45: Poteau | C45: 4 | D45: 200 | E45: 200 | F45: 2.698 | G45: =F45+0.15 -> 2.848 | H45: 3 | J45: 4
B47: Semelle | C47: 2 | D47: 50 | E47: 160 | F47: 0.4 | G47: =F47+0.15 -> 0.55 | H47: 3 | J47: 1

Sheet Devis
A1: Désignation | B1: section | D1: Lg | E1: Qt. | F1: Vol. | G1: P.U HT | H1: Montant HT
B2: Hauteur | C2: Largeur
B3: [mm] | C3: [mm] | D3: [m] | E3: [u] | F3: [m3] | G3: [€/m3] | H3: [€]
A4: Douglas | B4: 30 | C4: 190 | D4: 5.5 | E4: 4 | F4: =E4*D4*C4*B4/1000000 -> 0.1254 | G4: 580 | H4: =G4*F4 -> 72.732
A5: Douglas | B5: 60 | C5: 170 | D5: 5 | E5: 4 | F5: 0.204 | G5: 580 | H5: 118.32
A6: Douglas | B6: 70 | C6: 90 | D6: 5.5 | E6: 8 | F6: 0.2772 | G6: 580 | H6: 160.776
A7: Douglas | B7: 100 | C7: 190 | D7: 5.5 | E7: 14 | F7: 1.463 | G7: 550 | H7: 804.65
A8: Douglas | B8: 170 | C8: 170 | D8: 3 | E8: 1 | F8: 0.0867 | G8: 550 | H8: 47.685
A9: Douglas | B9: 210 | C9: 210 | D9: 3 | E9: 4 | F9: 0.5292 | G9: 550 | H9: 291.06
A11: Transport | E11: 1 | H11: 100
A13: Bois de charpente, brut de sciage, vive arête
G15: Volume total [m3] | H15: =F8+F9+F7+F5+F4+F6 -> 2.6855
G16: Total H.T. | H16: =H8+H9+H7+H5+H4+H6 -> 1495.223
G17: Total T.V.A. | H17: =H16*0.196 -> 293.063708
G18: Net à payer | H18: =H16+H17 -> 1788.286708
